Cogmind - Beta 14 @@@ ROGUE MODE // 2024.10.22 @ 15:12:32 Player: pd-p0l Result: Self-destructed Performance ------------- Evolutions (4) 2000 Regions Visited (8) 1600 Robots Destroyed (38) 190 Value Destroyed (1085) 1085 Prototype IDs (7) 140 Alien Tech Used (0) 0 Bonus (0) 0 TOTAL SCORE: 5015 Bonus ------- None Cogmind --------- Core Integrity 850/850 Matter 5/300 Energy 100/100 System Corruption 0% Temperature Cool (0) Movement Flying (104) Ox1 Location -6/Factory Parts ------- > --- POWER (1) -------- (None) > --- PROPULSION (6) --- Improved Flight Unit Biomechanical Wings > --- UTILITY (6) ------ Seismic Detector Transmission Jammer Hacking Suite Heart of Steel > --- WEAPON (2) ------- Great Maul > --- INVENTORY (5) ---- Layered Light Armor Plating Mining Laser Peak State ------------ > --- POWER ------------ (None) > --- PROPULSION ------- Improved Flight Unit Biomechanical Wings > --- UTILITY ---------- Seismic Detector Transmission Jammer Hacking Suite Heart of Steel > --- WEAPON ----------- Great Maul > --- INVENTORY -------- Layered Light Armor Plating Mining Laser [Rating: 44] Favorites ----------- Power Heavy Ion Engine Engine Heavy Ion Engine Propulsion Aluminum Leg Leg Aluminum Leg Flight Unit Improved Flight Unit Utility Small Storage Unit Device Cooling System Storage Small Storage Unit Processor Advanced Visual Processing Unit Hackware Hacking Suite Weapon Improved Assault Rifle Energy Gun Small Laser Energy Cannon Beam Cannon Ballistic Gun Improved Assault Rifle Launcher Grenade Launcher Impact Weapon Great Maul Build | -11 -10 -10 -9 -8 -7 -7 -7 -6 ------- Run | Yrd Mat Min Mat Mat Fac Low Low Fac Slots Evolved 8 | . . . 2 2 2 . . 2 Power . | . . . . . . . . . Propulsion 4 | . . . 2 . 1 . . 1 Utility 4 | . . . . 2 1 . . 1 Weapon . | . . . . . . . . . Parts Attached 43 | 6 5 5 9 6 4 . 4 4 Power 6 | 1 1 2 1 . 1 . . . Engine 6 | 1 1 2 1 . 1 . . . Core . | . . . . . . . . . Reactor . | . . . . . . . . . Propulsion 13 | 2 1 3 2 3 1 . . 1 Treads . | . . . . . . . . . Leg 11 | 2 1 3 2 3 . . . . Wheel . | . . . . . . . . . Hover . | . . . . . . . . . Flight 2 | . . . . . 1 . . 1 Utility 14 | 1 1 . 4 2 . . 3 3 Device 11 | . 1 . 4 1 . . 2 3 Storage 1 | 1 . . . . . . . . Processor 1 | . . . . 1 . . . . Hackware 1 | . . . . . . . 1 . Protection . | . . . . . . . . . Artifact . | . . . . . . . . . Weapon 10 | 2 2 . 2 1 2 . 1 . Energy Gun 2 | 2 . . . . . . . . Energy Cannon 3 | . 2 . . 1 . . . . Ballistic Gun 2 | . . . 2 . . . . . Ballistic Cannon . | . . . . . . . . . Launcher 2 | . . . . . 2 . . . Special Weapon . | . . . . . . . . . Impact Weapon 1 | . . . . . . . 1 . Slashing Weapon . | . . . . . . . . . Piercing Weapon . | . . . . . . . . . Special Melee Weapon . | . . . . . . . . . Unidentified Prototypes 5 | . . . 2 . 1 . 1 1 Parts Lost 12 | . 1 . 1 8 1 . 1 . Power 3 | . 1 . . 1 . . 1 . Propulsion 5 | . . . 1 4 . . . . Utility 1 | . . . . 1 . . . . Weapon 3 | . . . . 2 1 . . . Highest Loss Streak 8 | . 1 . 1 8 1 . 1 . To Critical Strikes . | . . . . . . . . . Average Slot Usage (%) 78 | . 92 99 95 83 4 15 20 44 Engine 9 | . 13 13 11 7 1 7 . . Leg 25 | . 28 28 39 29 . . . . Flight 1 | . . . . . 1 7 7 13 Device 10 | . 7 14 11 15 . . 2 17 Storage 9 | . 14 14 11 8 . . . . Processor 1 | . . . . 7 . . . . Energy Gun 3 | . 24 . . . . . . . Energy Cannon 6 | . 3 28 . . . . . . Ballistic Gun 8 | . . . 21 14 . . . . Peak Build Rating 44 | 6 7 8 19 23 7 7 30 44 Average Rating 12 | 5 6 7 16 19 2 7 8 37 On Entrance 7 | . 6 7 8 15 1 7 7 12 Naked Turns 164 | . . . . 64 100 . . . Heaviest Build 22 | 11 17 17 21 22 5 5 5 16 Greatest Support 45 | 20 20 20 45 45 5 5 5 17 Greatest Overweight (x) 2 | 2 . . . 1 . . . 1 Average Overweight (x) . | . . . . . . . . . Largest Inventory Capacity 8 | 8 8 8 8 8 5 5 5 5 Average Capacity 7 | 7 8 8 8 7 5 5 5 5 Most Carried 8 | 5 8 8 8 8 5 4 5 5 Average Carried 6 | 2 5 7 7 7 4 4 3 2 Final Capacity 8 | 8 8 8 8 5 5 5 5 5 Final Carried 8 | 3 8 8 8 5 4 4 5 2 Class Distribution -------------------- 54% | Mutant 45% | Scavenger-Mutant Dominant Class ---------------- Mutant | -10/Materials Scavenger-Mutant | -10/Mines Scavenger-Mutant | -9/Materials Scavenger-Mutant | -8/Materials Mutant | -7/Factory Mutant | -7/Lower Caves Mutant | -7/Lower Caves Mutant | -6/Factory Resources | -11 -10 -10 -9 -8 -7 -7 -7 -6 ----------- Run | Yrd Mat Min Mat Mat Fac Low Low Fac Matter Collected 825 | 174 30 68 205 248 . 51 49 . Remotely . | . . . . . . . . . Salvage Created 1301 | . 298 91 306 526 18 . 62 . Parts 66 | . 17 2 21 23 2 . 1 . Haulers Intercepted 1 | . . . . 1 . . . . Recyclers Shooed 1 | . 1 . . . . . . . Parts Field Recycled . | . . . . . . . . . Retrieved Matter . | . . . . . . . . . Parts Self-Destructed 1 | . . . . . . . 1 . Prevented . | . . . . . . . . . Kills | -11 -10 -10 -9 -8 -7 -7 -7 -6 ------- Run | Yrd Mat Min Mat Mat Fac Low Low Fac Combat Hostiles Destroyed 32 | . 7 2 8 11 1 . 3 . Melee 2 | . . . . . . . 2 . Guns 25 | . 7 . 8 10 . . . . Cannons 3 | . . 2 . 1 . . . . AOE 1 | . . . . . 1 . . . Classes Destroyed 8 | . 6 . 1 1 . . . . Builder 1 | . 1 . . . . . . . Tunneler 1 | . 1 . . . . . . . Hauler 1 | . . . . 1 . . . . Recycler 1 | . 1 . . . . . . . Watcher 2 | . 1 . 1 . . . . . Swarmer 14 | . 3 . 4 3 1 . 3 . Grunt 12 | . 4 2 . 6 . . . . Sentry 6 | . . . 4 2 . . . . Best Kill Streak 5 | . 4 2 3 5 1 . 3 . Combat Bots Only 4 | . 3 2 3 4 1 . 3 . Max Kills in Single Turn 2 | . 2 1 2 1 1 . 1 . Gunslinging 1 | . 1 . 1 . . . . . Exploded 1 | . . . . . 1 . . . Melee 1 | . . . . . . . 1 . Uniques/NPCs Destroyed . | . . . . . . . . . Combat | -11 -10 -10 -9 -8 -7 -7 -7 -6 -------- Run | Yrd Mat Min Mat Mat Fac Low Low Fac Hostile Shots Fired 275 | . 32 18 48 97 56 11 13 . Missed 89 | . 7 5 16 25 28 7 1 . Damage Taken 2433 | . 277 176 371 1084 292 41 188 4 Core 829 | . 73 43 107 280 206 29 91 . Absorbed by Shields . | . . . . . . . . . Core Remaining (%) 65 | 100 . 53 73 49 . . 53 . Volleys Fired 104 | . 26 7 20 48 3 . . . Largest 2 | . 2 2 2 2 1 . . . Hottest 120 | . 90 120 46 60 30 . . . Shots Fired 189 | . 52 14 40 80 3 . . . Gun 166 | . 52 . 40 74 . . . . Cannon 20 | . . 14 . 6 . . . . Launcher 3 | . . . . . 3 . . . Special . | . . . . . . . . . Kinetic 114 | . . . 40 74 . . . . Thermal 72 | . 52 14 . 6 . . . . Explosive 3 | . . . . . 3 . . . Electromagnetic . | . . . . . . . . . Robot Hit Streak 15 | . 12 3 10 15 3 . . . Robot Miss Streak 3 | . 3 2 2 2 . . . . Penetration Max . | . . . . . . . . . Secondary Targets 5 | . 3 . 1 1 . . . . Max Gunslinging Chain 1 | . 1 . 1 1 . . . . Shots Hit Robots 142 | . 35 8 29 63 3 . 4 . Core Hits 75 | 12 18 3 13 24 3 . 2 . Critical Kills 1 | . . . 1 . . . . . Critical Parts Destroyed 2 | . . . . . . . 2 . Critical Strikes 4 | . 1 . 1 . . . 2 . Burn 1 | . 1 . . . . . . . Destroy 1 | . . . 1 . . . . . Smash 2 | . . . . . . . 2 . Melee Attacks 6 | . . . . . . . 6 . Impact 6 | . . . . . . . 6 . Slashing . | . . . . . . . . . Piercing . | . . . . . . . . . Sneak Attacks . | . . . . . . . . . Combat Hostiles . | . . . . . . . . . Follow-up Attacks . | . . . . . . . . . Damage Inflicted 2500 | 189 467 183 456 970 70 . 157 8 Guns 1719 | . 416 . 449 854 . . . . Cannons 290 | . . 175 . 115 . . . . Explosions 70 | . . . . . 70 . . . Melee 157 | . . . . . . . 157 . Ramming 264 | 189 51 8 7 1 . . . 8 Kinetic 1303 | . . . 449 854 . . . . Thermal 706 | . 416 175 . 115 . . . . Explosive 70 | . . . . . 70 . . . Electromagnetic . | . . . . . . . . . Impact 157 | . . . . . . . 157 . Slashing . | . . . . . . . . . Piercing . | . . . . . . . . . Highest Corruption . | . . . . . . . . . Average Corruption . | . . . . . . . . . Corruption Purged . | . . . . . . . . . Corruption Blocked . | . . . . . . . . . Overload Shots . | . . . . . . . . . Overflow Damage 92 | . . 3 . . . . 89 . Projectiles 3 | . . 3 . . . . . . Explosions . | . . . . . . . . . Melee 89 | . . . . . . . 89 . Knockbacks 4 | 4 . . . . . . . . Impact 4 | 4 . . . . . . . . Kinetic . | . . . . . . . . . Secondary . | . . . . . . . . . Self-Inflicted Damage 4 | . . . . . . . . 4 Shots . | . . . . . . . . . Rammed 1 | . . . . . . . . 1 Targets Rammed 100 | 73 20 2 3 1 . . . 1 Kicked 99 | 73 20 2 3 1 . . . . Crushed . | . . . . . . . . . Highest Temperature 303 | . 198 303 9 13 . . . . Average Temperature 93 | . 78 153 3 13 . . . . Received Heat Transfer 957 | . 126 102 108 567 36 18 . . Effects 1 | . . 1 . . . . . . Energy Bleed 1 | . . 1 . . . . . . Siege Activations . | . . . . . . . . . Robots Corrupted 1 | . . . . . . . 1 . Combat Hostiles 1 | . . . . . . . 1 . Parts Fried 1 | . . . . . . . 1 . Impact Corruptions 4 | . . . . . . . 4 . Robots Melted . | . . . . . . . . . Combat Hostiles . | . . . . . . . . . Parts Melted 3 | . 1 2 . . . . . . Heat Transferred 1732 | . 1177 370 . 185 . . . . Parts Sabotaged . | . . . . . . . . . Parts Stolen . | . . . . . . . . . Parts Stripped . | . . . . . . . . . Power Chain Reactions . | . . . . . . . . . Alert | -11 -10 -10 -9 -8 -7 -7 -7 -6 ------- Run | Yrd Mat Min Mat Mat Fac Low Low Fac Peak Influence 355 | . 217 58 255 355 353 . . 263 Initial 173 | . . 8 . 107 119 . . 173 Average 100 | . 78 22 78 202 235 . . 235 Maximum Alert Level 1 | . 1 . 1 1 1 . . 1 Low Security (%) 73 | 100 88 100 77 41 47 . . 12 Level 1 26 | . 11 . 22 58 52 . . 87 Level 2 . | . . . . . . . . . Level 3 . | . . . . . . . . . Level 4 . | . . . . . . . . . Level 5 . | . . . . . . . . . High Security . | . . . . . . . . . Max Security . | . . . . . . . . . Squads Dispatched 5 | . . 1 2 2 . . . . Investigation 2 | . . 1 1 . . . . . Extermination . | . . . . . . . . . Reinforcement 3 | . . . 1 2 . . . . Assault . | . . . . . . . . . Garrison . | . . . . . . . . . Intercept . | . . . . . . . . . Searches Triggered . | . . . . . . . . . Construction Impeded . | . . . . . . . . . Haulers Reinforced . | . . . . . . . . . Active Scanning Responses . | . . . . . . . . . Cargo Convoy Interrupts . | . . . . . . . . . Stealth | -11 -10 -10 -9 -8 -7 -7 -7 -6 --------- Run | Yrd Mat Min Mat Mat Fac Low Low Fac Distress Signals 3 | . 1 . . 2 . . . . Communications Jammed . | . . . . . . . . . Distress Signals . | . . . . . . . . . Times Spotted 79 | . 11 2 16 29 8 5 3 5 Peak Tracking Total 7 | . 5 2 3 7 4 5 3 2 Tactical Retreats 10 | . 1 . 1 5 2 1 . . Traps | -11 -10 -10 -9 -8 -7 -7 -7 -6 ------- Run | Yrd Mat Min Mat Mat Fac Low Low Fac Traps Triggered . | . . . . . . . . . Indirectly . | . . . . . . . . . Trap Hack Attempts . | . . . . . . . . . Triggered . | . . . . . . . . . Disarmed . | . . . . . . . . . Reprogrammed . | . . . . . . . . . Reused . | . . . . . . . . . Traps Extracted . | . . . . . . . . . Installed . | . . . . . . . . . Triggered . | . . . . . . . . . Machines | -11 -10 -10 -9 -8 -7 -7 -7 -6 ---------- Run | Yrd Mat Min Mat Mat Fac Low Low Fac Machines Disabled 4 | . . . . . 4 . . . Max in Single Turn 4 | . . . . . 4 . . . Machines Repaired . | . . . . . . . . . Machines Dismantled . | . . . . . . . . . Machines Sabotaged . | . . . . . . . . . Overloaded Fab Kills . | . . . . . . . . . Hacking | -11 -10 -10 -9 -8 -7 -7 -7 -6 --------- Run | Yrd Mat Min Mat Mat Fac Low Low Fac Machines Accessed 12 | . 2 1 5 1 1 . 1 1 Terminals 8 | . 2 . 4 1 1 . . . Fabricators 1 | . . . . . . . . 1 Repair Stations 1 | . . . 1 . . . . . Recycling Units . | . . . . . . . . . Scanalyzers . | . . . . . . . . . Garrison Access . | . . . . . . . . . Total Hacks 17 | . 3 1 8 1 2 . 1 1 Successful 11 | . 2 1 4 1 2 . 1 . Failed 6 | . 1 . 4 . . . . 1 Catastrophic . | . . . . . . . . . Database Lockouts . | . . . . . . . . . Manual . | . . . . . . . . . Terminals 11 | . 3 . 5 1 2 . . . Fabricators 1 | . . . . . . . . 1 Repair Stations 3 | . . . 3 . . . . . Recycling Units . | . . . . . . . . . Scanalyzers . | . . . . . . . . . Garrison Access . | . . . . . . . . . Terminal Hacks 10 | . 2 1 3 1 2 . 1 . Record 1 | . . . 1 . . . . . Prototype ID Bank 1 | . 1 . . . . . . . Open Door 2 | . . 1 . . . . 1 . Locate Traps 1 | . . . . 1 . . . . Transport Status 1 | . 1 . . . . . . . Investigation Status 1 | . . . . . 1 . . . Hauler Manifests 1 | . . . 1 . . . . . Zone Layout 2 | . . . 1 . 1 . . . Fabricator Hacks . | . . . . . . . . . Repair Station Hacks 1 | . . . 1 . . . . . Scan Component 1 | . . . 1 . . . . . Recycling Unit Hacks . | . . . . . . . . . Scanalyzer . | . . . . . . . . . Garrison Access Hacks . | . . . . . . . . . Unauthorized Hacks . | . . . . . . . . . Terminals . | . . . . . . . . . Fabricators . | . . . . . . . . . Repair Stations . | . . . . . . . . . Recycling Units . | . . . . . . . . . Scanalyzers . | . . . . . . . . . Garrison Access . | . . . . . . . . . Data Cores Recovered . | . . . . . . . . . Used . | . . . . . . . . . Hacking Detections 7 | . 2 . 4 . . . . 1 Full Trace Events 1 | . . . 1 . . . . . Feedback Events . | . . . . . . . . . Feedback Blocked . | . . . . . . . . . Robot Schematics Acquired . | . . . . . . . . . Robots Built . | . . . . . . . . . Authchips . | . . . . . . . . . Time . | . . . . . . . . . Total Robot Build Rating . | . . . . . . . . . Part Schematics Acquired . | . . . . . . . . . Parts Built . | . . . . . . . . . Authchips . | . . . . . . . . . Time . | . . . . . . . . . Total Part Build Rating . | . . . . . . . . . Parts Repaired . | . . . . . . . . . Time . | . . . . . . . . . Parts Recycled . | . . . . . . . . . Recycled Matter . | . . . . . . . . . Retrieved Matter . | . . . . . . . . . Retrieved Components . | . . . . . . . . . Parts Scanalyzed . | . . . . . . . . . Part Schematics Acquired . | . . . . . . . . . Parts Damaged . | . . . . . . . . . Bothacking | -11 -10 -10 -9 -8 -7 -7 -7 -6 ------------ Run | Yrd Mat Min Mat Mat Fac Low Low Fac Used RIF Installer . | . . . . . . . . . Robots Hacked . | . . . . . . . . . Non-combat . | . . . . . . . . . Combat . | . . . . . . . . . Robot Hacks Applied . | . . . . . . . . . Relay Couplers Released . | . . . . . . . . . Fabnet Peak Effective % . | . . . . . . . . . Robots Rewired . | . . . . . . . . . Allies Hacked . | . . . . . . . . . Hacks Repelled . | . . . . . . . . . Allies | -11 -10 -10 -9 -8 -7 -7 -7 -6 -------- Run | Yrd Mat Min Mat Mat Fac Low Low Fac Total Allies . | . . . . . . . . . Largest Group . | . . . . . . . . . Highest-Rated Group . | . . . . . . . . . Highest-Rated Ally . | . . . . . . . . . Total Orders . | . . . . . . . . . Ally Attacks . | . . . . . . . . . Total Damage . | . . . . . . . . . Kills . | . . . . . . . . . Allies Corrupted . | . . . . . . . . . Allies Melted . | . . . . . . . . . Intel | -11 -10 -10 -9 -8 -7 -7 -7 -6 ------- Run | Yrd Mat Min Mat Mat Fac Low Low Fac Robot Analysis Total . | . . . . . . . . . Derelict Logs Recovered 2 | . . 1 . . . 1 . . Drone Launches . | . . . . . . . . . Drone Recoveries . | . . . . . . . . . Exploration | -11 -10 -10 -9 -8 -7 -7 -7 -6 ------------- Run | Yrd Mat Min Mat Mat Fac Low Low Fac Turns Passed 3379 | 385 439 582 759 572 151 145 116 230 Spaces Moved 2804 | 239 222 427 477 383 298 362 211 185 Core 330 | 14 . . . 125 191 . . . Treads . | . . . . . . . . . Legs 1609 | 225 222 427 477 258 . . . . Wheels . | . . . . . . . . . Hover . | . . . . . . . . . Flight 865 | . . . . . 107 362 211 185 Fastest Speed 37 | 50 120 120 120 50 40 40 40 37 Average Speed 88 | 117 120 120 120 98 46 40 40 62 Slowest Speed 190 | 150 120 120 120 190 50 40 40 104 Overloaded Moves . | . . . . . . . . . Propulsion Burnouts . | . . . . . . . . . Robots Hopped 3 | . . . . . . 1 2 . Cave-ins Triggered . | . . . . . . . . . Exploration Rate (%) 32 | 10 39 66 57 29 9 53 21 5 Regions Visited 8 Branch Regions 3 Pre-discovered Areas 1 | . . 1 . . . . . . Known Exits Taken . | . . . . . . . . . Unknown Exits Taken 8 | 1 1 1 1 1 1 1 1 . Scrap Searched 2 | . . 1 . . . . 1 . Spaces Dug . | . . . . . . . . . Terrain Destroyed 37 | . . . . . 37 . . . Melee . | . . . . . . . . . Projectile . | . . . . . . . . . AOE 37 | . . . . . 37 . . . Terrain Rammed . | . . . . . . . . . Walls Destroyed . | . . . . . . . . . Machines Disabled . | . . . . . . . . . Actions | -11 -10 -10 -9 -8 -7 -7 -7 -6 --------- Run | Yrd Mat Min Mat Mat Fac Low Low Fac Total 3466 | 328 339 482 622 499 307 360 229 300 Wait 333 | . 50 34 100 44 . . 2 103 Move 2790 | 238 221 426 476 382 297 359 206 185 Hop 3 | . . . . . . 1 2 . Pick Up 56 | 10 12 4 8 11 2 . 5 4 Fast Attach . | . . . . . . . . . Attach 27 | 6 2 1 2 4 4 . 4 4 Detach 3 | . . . . . 1 . 1 1 Swap 16 | . 3 4 7 2 . . . . Drop 28 | 1 5 4 6 7 . . 3 2 Fire 104 | . 26 7 20 48 3 . . . Melee 6 | . . . . . . . 6 . Ram 1 | . . . . . . . . 1 Kick 99 | 73 20 2 3 1 . . . . Crush . | . . . . . . . . . Escape Stasis . | . . . . . . . . . Rewire . | . . . . . . . . . Trap . | . . . . . . . . . Miscellaneous . | . . . . . . . . . Route ------- -11/Scrapyard -10/Materials -10/Mines -9/Materials -8/Materials -7/Factory -7/Lower Caves -7/Lower Caves -6/Factory History --------- Turn | Location | Event 12 | -11/Scrapyard | Discovered new exit (range 15) 386 | -11/Scrapyard | Entered Materials 387 | -10/Materials | Build established: Mutant 792 | -10/Materials | Discovered new exit (range 14) 825 | -10/Materials | Entered Mines 857 | -10/Mines | Met a Derelict bent on vengeance 923 | -10/Mines | Learned location of Recycling (-7) 934 | -10/Mines | Received a Rocket Launcher from a helpful Derelict 1263 | -10/Mines | Discovered new exit (range 10) 1310 | -10/Mines | Met a Derelict shopkeep closing up shop 1350 | -10/Mines | Build established: Scavenger-Mutant 1407 | -10/Mines | Entered Materials 1407 | -9/Materials | Evolved 2 slots: Propulsion x2 2162 | -9/Materials | Discovered new exit (range 3) 2166 | -9/Materials | Entered another Materials area 2166 | -8/Materials | Evolved 2 slots: Utility x2 2674 | -8/Materials | Released all parts (4) 2705 | -8/Materials | Lost 8 parts (1p4n1u2w) 2734 | -8/Materials | Discovered new exit (range 8) 2735 | -8/Materials | Core integrity fell below 50% 2738 | -8/Materials | Entered Factory 2738 | -7/Factory | Evolved 2 slots: Propulsion x1, Utility x1 2836 | -7/Factory | Discovered new exit (range 16) 2886 | -7/Factory | Build established: Mutant 2889 | -7/Factory | Entered Lower Caves 2989 | -7/Lower Caves | Attracted the attention of an 0b10 checkpoint 2991 | -7/Lower Caves | Learned Factory emergency access door positions 3014 | -7/Lower Caves | Discovered new exit (range 12) 3034 | -7/Lower Caves | Entered another Lower Caves area 3089 | -7/Lower Caves | Found Prototype Device 3090 | -7/Lower Caves | Identified Heart of Steel 3148 | -7/Lower Caves | Discovered new exit (range 6) 3150 | -7/Lower Caves | Entered Factory 3150 | -6/Factory | Evolved 2 slots: Propulsion x1, Utility x1 3380 | -6/Factory | Self-destructed Last Messages --------------- 03153_ Dropped Imp. Ion Engine. 03154_ Acquired Prototype Flight Unit. 03155_ Identified Biomechanical Wings. 03167_ Acquired Transmission Jammer. 03171_ Acquired Weight Redist. System. 03173_ K-01 Serf cleans the Power Conduit. 03177_ Connecting with Terminal... 03177_ Current location identified: Factory 03177_ Connecting with Terminal... 03180_ K-01 Serf cleans the Power Conduit. 03181_ ALERT: All DSF locations entering lockdown mode. 03187_ Connecting with Fabricator... 03193_ U-05 Engineer works on Matter Pump. 03193_ K-01 Serf collects debris. 03198_ Dropped Weight Redist. System. 03199_ Acquired Lyr. Light Armor Plating. 03247_ K-01 Serf collects debris. 03247_ Slammed into K-01 Serf. 03380_ Connecting with Terminal... Map ----- +----------------------------------------------------+ | | | | | | | | | | | | | | | ?????????????????????????????????????????????????# | | ?????????????????????????????????????????????????# | | ?????????????????????????????????????????????????# | | ????????????????????????????????????########?????# | | ????????????????????????????????????# #?????# | | ????????????????????????????????????# #?????# | | ????????????????????????????????????# ####### | | ????????????????????????????????????# # # | | ????????????????????????????????????# # | | ????????????????????????????????????# # | | ????????????????????????????????????# """" # | | ????????????????????????????????????# """" # | | ????????????????????????????????????# """" # | | ????????????????????????????????????# """" # | | ????????????????##############??????# """" # | | ????????????????# #??????# """" # | | ????????????????# """"" #??????# ####### | | ????????????????# ""T"" ######## #?????# | | ????????????????# @ # #######+####### | | ????????????????# # | | ????????????????#[ + | | ????????????????# """ # | | ????????????????# """"" [!! # ##+############ | | ????????????????# k""""" [! ### ### ## | | ????????????????# [! #?# #?# ! ## | | ??????????????????? #?# #?# ## | | ??????????????????! #?# #?# ## | | ?????????????????#########+###?# #?# ## | | ???????????????????????????????# #?# ## | | ???????????????????????????????# #?# + | | ???????????????????????????????? ??# ! /! ## | | ???????????????????????????????? ??# ! #? | | ???????????????????????????????? ??# != ! #? | | ???????????????????????????????? ??# #? | | ???????????????????????????????? ??# #? | | ???????????????????????????????? ??#####+########? | | ???????????????????????????????????????#^#???????? | | ???????????????????????????????????????# #???????? | | ???????????????????????????????????????# ???????? | | ???????????????????????????????????????# ???????? | | ??????????????????????????????????????? ???????? | | ??????????????????????????????????????? ???????? | | ??????????????????????????????????????? ??????? | +----------------------------------------------------+ Best States ------------- Heat Dissipation 53 Energy Generation 14 Energy Capacity 280 Matter Stores 300 Matter Capacity 300 Sight Range 20 Robot Scan Range 14 Terrain Scan Density 10 Jamming Range 12 Evasion (%) 62 Offensive Hacking 10 Item Schematics ----------------- None Robot Schematics ------------------ None Fabricated ------------ Nothing Alien Tech Used ----------------- None Achievements -------------- None Challenges ------------ None Game ------ Seed GammaCarbideDetonator Manual? 0 Play Time 01:08:19 Cumulative 12.2 hours Start 2024.10.21 @ 16:04:18 End 2024.10.22 @ 15:12:32 Sessions 5 Manual Loads 0 Difficulty Rogue Special Mode None Game No. 14 Rogue 14 Adventurer 0 Explorer 0 Win Type - Total 0 Types 0/0/0/0/0/0/0/0/0 Lore% 8 Gallery% 14 Achievement% 12 Wizard Run 0 Options --------- Layout 1 ASCII 0 Keyboard 1 Movement Vi Keybinds 0 Fullscreen 1 Font 24/Smallcaps Map View 50x35 Zoom Use 0% Tactical HUD 1 Map Filters NONE Filters NONE Steam 1 RUN: 700b38fc-ccd0-46f8-94c5-b5d8a164278f